[Event "Titled Tuesday Blitz February 21 Late 2023"]
[White "Guzman, Christopher"]
[Black "Li, Hui"]
[WhiteFideId "6405096"]
[BlackFideId "15400310"]
[WhiteElo "2271"]
[BlackElo "1963"]
[Result "1-0"]
[Round "07"]
[TimeControl "180+2"]
[Date "2023.02.21"]
[WhiteClock "0:02:42"]
[BlackClock "0:00:29"]

1. e4 {[%clk 0:03:00]}  e5 {[%clk 0:03:00]} 2. Nf3 {[%clk 0:02:59]}  Nf6 {[%clk 0:03:00]} 3. Nxe5 {[%clk 0:02:58]}  d6 {[%clk 0:02:57]} 4. Nf3 {[%clk 0:02:57]}  Nxe4 {[%clk 0:02:58]} 5. c3 {[%clk 0:02:58]}  d5 {[%clk 0:02:54]} 6. d3 {[%clk 0:02:56]}  Nf6 {[%clk 0:02:53]} 7. Bg5 {[%clk 0:02:56]}  Bd6 {[%clk 0:02:50]} 8. Nbd2 {[%clk 0:02:56]}  O-O {[%clk 0:02:46]} 9. Be2 {[%clk 0:02:56]}  Re8 {[%clk 0:02:46]} 10. O-O {[%clk 0:02:57]}  c6 {[%clk 0:02:42]} 11. Re1 {[%clk 0:02:57]}  Bg4 {[%clk 0:02:39]} 12. a4 {[%clk 0:02:57]}  a5 {[%clk 0:02:37]} 13. Qb3 {[%clk 0:02:57]}  Ra7 {[%clk 0:01:41]} 14. Bxf6 {[%clk 0:02:56]}  gxf6 {[%clk 0:01:07]} 15. Bf1 {[%clk 0:02:56]}  Nd7 {[%clk 0:01:00]} 16. h3 {[%clk 0:02:52]}  Be6 {[%clk 0:00:58]} 17. d4 {[%clk 0:02:52]}  Qb6 {[%clk 0:00:48]} 18. Qc2 {[%clk 0:02:52]}  Raa8 {[%clk 0:00:48]} 19. Bd3 {[%clk 0:02:51]}  Nf8 {[%clk 0:00:46]} 20. Nh4 {[%clk 0:02:49]}  Ng6 {[%clk 0:00:44]} 21. Nxg6 {[%clk 0:02:46]}  fxg6 {[%clk 0:00:44]} 22. Bxg6 {[%clk 0:02:47]}  hxg6 {[%clk 0:00:44]} 23. Qxg6+ {[%clk 0:02:48]}  Kh8 {[%clk 0:00:39]} 24. Qxf6+ {[%clk 0:02:46]}  Kg8 {[%clk 0:00:38]} 25. Rxe6 {[%clk 0:02:46]}  Qxb2 {[%clk 0:00:32]} 26. Qg6+ {[%clk 0:02:46]}  Kf8 {[%clk 0:00:29]} 27. Rf6+ {[%clk 0:02:44]}  Ke7 {[%clk 0:00:29]} 28. Qf7+ {[%clk 0:02:42]} 1-0


[Site "https://www.chess.com"]

[Event "Titled Tuesday Blitz February 21 Late 2023"]
[White "Vaglio Mattey, Emanuel"]
[Black "Fieberg, Samuel"]
[WhiteFideId "6504167"]
[BlackFideId "12901717"]
[WhiteElo "2155"]
[BlackElo "2157"]
[Result "1-0"]
[Round "07"]
[TimeControl "180+2"]
[Date "2023.02.21"]
[WhiteClock "0:00:06"]
[BlackClock "0:00:36"]

1. d4 {[%clk 0:03:00]}  d5 {[%clk 0:02:55]} 2. Nf3 {[%clk 0:03:00]}  c5 {[%clk 0:02:55]} 3. e3 {[%clk 0:02:55]}  Nf6 {[%clk 0:02:53]} 4. c3 {[%clk 0:02:49]}  e6 {[%clk 0:02:52]} 5. Nbd2 {[%clk 0:02:47]}  Nbd7 {[%clk 0:02:52]} 6. Bd3 {[%clk 0:02:48]}  b6 {[%clk 0:02:52]} 7. O-O {[%clk 0:02:48]}  Bb7 {[%clk 0:02:53]} 8. Qe2 {[%clk 0:02:49]}  Ne4 {[%clk 0:02:53]} 9. Ba6 {[%clk 0:02:47]}  Bxa6 {[%clk 0:02:46]} 10. Qxa6 {[%clk 0:02:48]}  Nd6 {[%clk 0:02:41]} 11. Ne5 {[%clk 0:02:34]}  Nxe5 {[%clk 0:02:41]} 12. dxe5 {[%clk 0:02:35]}  Nf5 {[%clk 0:02:37]} 13. e4 {[%clk 0:02:33]}  dxe4 {[%clk 0:02:27]} 14. Nxe4 {[%clk 0:02:28]}  Be7 {[%clk 0:02:28]} 15. Bf4 {[%clk 0:02:12]}  O-O {[%clk 0:02:27]} 16. Rfd1 {[%clk 0:01:40]}  Qc7 {[%clk 0:02:19]} 17. Rd2 {[%clk 0:01:18]}  Rad8 {[%clk 0:02:18]} 18. Rad1 {[%clk 0:01:18]}  Rxd2 {[%clk 0:02:18]} 19. Rxd2 {[%clk 0:01:19]}  Rd8 {[%clk 0:02:16]} 20. Rxd8+ {[%clk 0:00:55]}  Qxd8 {[%clk 0:02:17]} 21. h3 {[%clk 0:00:52]}  Qd7 {[%clk 0:02:13]} 22. a4 {[%clk 0:00:26]}  h6 {[%clk 0:02:11]} 23. a5 {[%clk 0:00:25]}  Qc6 {[%clk 0:02:10]} 24. f3 {[%clk 0:00:23]}  Kh7 {[%clk 0:01:57]} 25. Qxa7 {[%clk 0:00:21]}  bxa5 {[%clk 0:01:53]} 26. Qxa5 {[%clk 0:00:22]}  g5 {[%clk 0:01:53]} 27. Bd2 {[%clk 0:00:18]}  Qd5 {[%clk 0:01:53]} 28. Qc7 {[%clk 0:00:17]}  Kg6 {[%clk 0:01:49]} 29. b4 {[%clk 0:00:17]}  cxb4 {[%clk 0:01:48]} 30. cxb4 {[%clk 0:00:18]}  h5 {[%clk 0:01:48]} 31. Qc2 {[%clk 0:00:18]}  Kh6 {[%clk 0:01:44]} 32. Qc3 {[%clk 0:00:17]}  h4 {[%clk 0:01:42]} 33. Qb2 {[%clk 0:00:12]}  Ng3 {[%clk 0:01:37]} 34. Nxg3 {[%clk 0:00:09]}  hxg3 {[%clk 0:01:37]} 35. Qc3 {[%clk 0:00:07]}  Bd8 {[%clk 0:01:27]} 36. h4 {[%clk 0:00:05]}  Bb6+ {[%clk 0:01:27]} 37. Kf1 {[%clk 0:00:04]}  Qb5+ {[%clk 0:01:18]} 38. Ke1 {[%clk 0:00:04]}  Bf2+ {[%clk 0:01:16]} 39. Kd1 {[%clk 0:00:04]}  Qf1+ {[%clk 0:01:16]} 40. Kc2 {[%clk 0:00:05]}  Qxg2 {[%clk 0:01:15]} 41. Bxg5+ {[%clk 0:00:04]}  Kh5 {[%clk 0:01:02]} 42. Kb3 {[%clk 0:00:05]}  Qf1 {[%clk 0:00:56]} 43. Qc2 {[%clk 0:00:05]}  f5 {[%clk 0:00:40]} 44. exf6 {[%clk 0:00:06]}  Qc4+ {[%clk 0:00:35]} 45. Kxc4 {[%clk 0:00:06]}  g2 {[%clk 0:00:36]} 46. Qh7# {[%clk 0:00:06]} 1-0


[Site "https://www.chess.com"]

[Event "Titled Tuesday Blitz February 21 Late 2023"]
[White "Nunez V, Gustavo Eduardo"]
[Black "Ibadov, Dashgyn"]
[WhiteFideId "4403690"]
[BlackFideId "24107514"]
[WhiteElo "2212"]
[BlackElo "2391"]
[Result "0-1"]
[Round "07"]
[TimeControl "180+2"]
[Date "2023.02.21"]
[WhiteClock "0:00:19"]
[BlackClock "0:00:12"]

1. e4 {[%clk 0:03:00]}  c5 {[%clk 0:02:59]} 2. Nc3 {[%clk 0:03:01]}  d6 {[%clk 0:02:57]} 3. g3 {[%clk 0:03:00]}  Nc6 {[%clk 0:02:56]} 4. Bg2 {[%clk 0:03:01]}  g6 {[%clk 0:02:57]} 5. d3 {[%clk 0:03:00]}  Bg7 {[%clk 0:02:57]} 6. Be3 {[%clk 0:03:01]}  e6 {[%clk 0:02:52]} 7. Qd2 {[%clk 0:02:56]}  h5 {[%clk 0:02:50]} 8. h3 {[%clk 0:02:55]}  Nge7 {[%clk 0:02:48]} 9. Nge2 {[%clk 0:02:54]}  Nd4 {[%clk 0:02:44]} 10. O-O {[%clk 0:02:51]}  Nec6 {[%clk 0:02:41]} 11. Rab1 {[%clk 0:02:38]}  Rb8 {[%clk 0:02:19]} 12. a3 {[%clk 0:02:33]}  Nxe2+ {[%clk 0:02:07]} 13. Nxe2 {[%clk 0:02:30]}  Nd4 {[%clk 0:02:04]} 14. b4 {[%clk 0:02:12]}  Qc7 {[%clk 0:01:51]} 15. c3 {[%clk 0:02:10]}  Nxe2+ {[%clk 0:01:50]} 16. Qxe2 {[%clk 0:02:11]}  O-O {[%clk 0:01:47]} 17. Rfc1 {[%clk 0:02:10]}  b6 {[%clk 0:01:45]} 18. d4 {[%clk 0:02:00]}  Bb7 {[%clk 0:01:39]} 19. bxc5 {[%clk 0:01:58]}  bxc5 {[%clk 0:01:34]} 20. Rb2 {[%clk 0:01:38]}  Ba6 {[%clk 0:01:24]} 21. Qd2 {[%clk 0:01:38]}  Rxb2 {[%clk 0:01:18]} 22. Qxb2 {[%clk 0:01:39]}  Rb8 {[%clk 0:01:18]} 23. Qc2 {[%clk 0:01:30]}  Bc4 {[%clk 0:01:01]} 24. Rb1 {[%clk 0:01:27]}  Rb6 {[%clk 0:00:55]} 25. e5 {[%clk 0:01:07]}  Rxb1+ {[%clk 0:00:47]} 26. Qxb1 {[%clk 0:01:08]}  cxd4 {[%clk 0:00:47]} 27. exd6 {[%clk 0:00:51]}  Qxd6 {[%clk 0:00:47]} 28. cxd4 {[%clk 0:00:28]}  Qxa3 {[%clk 0:00:39]} 29. Qb8+ {[%clk 0:00:20]}  Bf8 {[%clk 0:00:25]} 30. Bh6 {[%clk 0:00:17]}  a5 {[%clk 0:00:23]} 31. Qa8 {[%clk 0:00:14]}  a4 {[%clk 0:00:04]} 32. Bxf8 {[%clk 0:00:14]}  Qxf8 {[%clk 0:00:05]} 33. Qxa4 {[%clk 0:00:13]}  Qc8 {[%clk 0:00:05]} 34. Qd1 {[%clk 0:00:12]}  Kg7 {[%clk 0:00:05]} 35. Qd2 {[%clk 0:00:11]}  Qa6 {[%clk 0:00:04]} 36. Kh2 {[%clk 0:00:11]}  Qb5 {[%clk 0:00:03]} 37. Qc3 {[%clk 0:00:12]}  Bd5 {[%clk 0:00:04]} 38. Bxd5 {[%clk 0:00:11]}  Qxd5 {[%clk 0:00:04]} 39. Qe3 {[%clk 0:00:12]}  Kf6 {[%clk 0:00:04]} 40. Qf4+ {[%clk 0:00:11]}  Ke7 {[%clk 0:00:04]} 41. Qc7+ {[%clk 0:00:11]}  Kf8 {[%clk 0:00:05]} 42. Qb8+ {[%clk 0:00:11]}  Kg7 {[%clk 0:00:04]} 43. Qe5+ {[%clk 0:00:12]}  Qxe5 {[%clk 0:00:03]} 44. dxe5 {[%clk 0:00:13]}  Kf8 {[%clk 0:00:03]} 45. f4 {[%clk 0:00:13]}  Ke7 {[%clk 0:00:03]} 46. Kg2 {[%clk 0:00:13]}  Kd7 {[%clk 0:00:04]} 47. Kf3 {[%clk 0:00:14]}  Kc6 {[%clk 0:00:05]} 48. Ke4 {[%clk 0:00:14]}  Kc5 {[%clk 0:00:05]} 49. g4 {[%clk 0:00:15]}  hxg4 {[%clk 0:00:05]} 50. hxg4 {[%clk 0:00:16]}  Kc4 {[%clk 0:00:05]} 51. f5 {[%clk 0:00:16]}  g5 {[%clk 0:00:04]} 52. fxe6 {[%clk 0:00:05]}  fxe6 {[%clk 0:00:05]} 53. Ke3 {[%clk 0:00:05]}  Kd5 {[%clk 0:00:05]} 54. Kf3 {[%clk 0:00:05]}  Kxe5 {[%clk 0:00:05]} 55. Ke3 {[%clk 0:00:06]}  Kd5 {[%clk 0:00:06]} 56. Kd3 {[%clk 0:00:06]}  e5 {[%clk 0:00:06]} 57. Ke3 {[%clk 0:00:07]}  e4 {[%clk 0:00:07]} 58. Ke2 {[%clk 0:00:08]}  Kd4 {[%clk 0:00:07]} 59. Kf2 {[%clk 0:00:08]}  Kd3 {[%clk 0:00:07]} 60. Ke1 {[%clk 0:00:08]}  Ke3 {[%clk 0:00:07]} 61. Kd1 {[%clk 0:00:08]}  Kf4 {[%clk 0:00:07]} 62. Ke2 {[%clk 0:00:09]}  Kxg4 {[%clk 0:00:08]} 63. Ke3 {[%clk 0:00:10]}  Kf5 {[%clk 0:00:09]} 64. Kf2 {[%clk 0:00:11]}  Kf4 {[%clk 0:00:09]} 65. Ke2 {[%clk 0:00:11]}  e3 {[%clk 0:00:10]} 66. Kf1 {[%clk 0:00:12]}  Kf3 {[%clk 0:00:10]} 67. Ke1 {[%clk 0:00:13]}  e2 {[%clk 0:00:11]} 68. Kd2 {[%clk 0:00:13]}  Kf2 {[%clk 0:00:11]} 69. Kd3 {[%clk 0:00:13]}  e1=Q {[%clk 0:00:12]} 70. Kc4 {[%clk 0:00:14]}  Ke3 {[%clk 0:00:12]} 71. Kb5 {[%clk 0:00:15]}  Qc3 {[%clk 0:00:12]} 72. Kb6 {[%clk 0:00:15]}  Kd4 {[%clk 0:00:12]} 73. Kb5 {[%clk 0:00:16]}  Qc5+ {[%clk 0:00:12]} 74. Ka6 {[%clk 0:00:17]}  Qb4 {[%clk 0:00:12]} 75. Ka7 {[%clk 0:00:18]}  Kc5 {[%clk 0:00:12]} 76. Ka8 {[%clk 0:00:18]}  Kc6 {[%clk 0:00:12]} 77. Ka7 {[%clk 0:00:19]}  Qb7# {[%clk 0:00:12]} 0-1


[Site "https://www.chess.com"]

[Event "Titled Tuesday Blitz February 21 Late 2023"]
[White "Bilan, Danila"]
[Black "Gerbelli Neto, Eduardo"]
[WhiteFideId "24161918"]
[BlackFideId "2103281"]
[WhiteElo "2303"]
[BlackElo "2114"]
[Result "1-0"]
[Round "07"]
[TimeControl "180+2"]
[Date "2023.02.21"]
[WhiteClock "0:00:16"]
[BlackClock "0:00:09"]

1. d4 {[%clk 0:02:59]}  d5 {[%clk 0:02:59]} 2. Nf3 {[%clk 0:02:59]}  Nf6 {[%clk 0:02:59]} 3. c4 {[%clk 0:02:59]}  c6 {[%clk 0:02:59]} 4. Nc3 {[%clk 0:02:59]}  e6 {[%clk 0:02:58]} 5. Bg5 {[%clk 0:02:58]}  dxc4 {[%clk 0:02:58]} 6. e4 {[%clk 0:02:58]}  b5 {[%clk 0:02:57]} 7. e5 {[%clk 0:02:58]}  h6 {[%clk 0:02:58]} 8. Bh4 {[%clk 0:02:59]}  g5 {[%clk 0:02:59]} 9. Nxg5 {[%clk 0:03:00]}  Nd5 {[%clk 0:02:59]} 10. Nxf7 {[%clk 0:02:34]}  Qxh4 {[%clk 0:02:59]} 11. Nxh8 {[%clk 0:02:34]}  Bb4 {[%clk 0:03:00]} 12. Rc1 {[%clk 0:02:11]}  c5 {[%clk 0:02:59]} 13. dxc5 {[%clk 0:02:01]}  Nd7 {[%clk 0:02:56]} 14. Be2 {[%clk 0:01:50]}  Bb7 {[%clk 0:02:46]} 15. Bh5+ {[%clk 0:01:43]}  Kd8 {[%clk 0:02:46]} 16. Nf7+ {[%clk 0:01:33]}  Kc7 {[%clk 0:02:46]} 17. Nd6 {[%clk 0:01:34]}  Bc6 {[%clk 0:02:25]} 18. O-O {[%clk 0:01:23]}  Bxc3 {[%clk 0:02:25]} 19. bxc3 {[%clk 0:01:22]}  Rg8 {[%clk 0:02:20]} 20. Bf3 {[%clk 0:01:11]}  Nxe5 {[%clk 0:02:19]} 21. Nxb5+ {[%clk 0:00:54]}  Bxb5 {[%clk 0:01:24]} 22. Bxd5 {[%clk 0:00:54]}  exd5 {[%clk 0:01:04]} 23. Qxd5 {[%clk 0:00:51]}  Qg5 {[%clk 0:01:04]} 24. f4 {[%clk 0:00:42]}  Nf3+ {[%clk 0:00:44]} 25. Qxf3 {[%clk 0:00:40]}  Qxc5+ {[%clk 0:00:45]} 26. Qf2 {[%clk 0:00:37]}  Bc6 {[%clk 0:00:15]} 27. Qxc5 {[%clk 0:00:17]}  Rxg2+ {[%clk 0:00:15]} 28. Kh1 {[%clk 0:00:17]}  Rg4+ {[%clk 0:00:08]} 29. Qxc6+ {[%clk 0:00:17]}  Kxc6 {[%clk 0:00:09]} 30. f5 {[%clk 0:00:16]} 1-0


[Site "https://www.chess.com"]

[Event "Titled Tuesday Blitz February 21 Late 2023"]
[White "Rios Escobar, Adan"]
[Black "Veiga, Jose Francisco R P Neves"]
[WhiteFideId "3403645"]
[BlackFideId "1930087"]
[WhiteElo "2234"]
[BlackElo "2406"]
[Result "0-1"]
[Round "07"]
[TimeControl "180+2"]
[Date "2023.02.21"]
[WhiteClock "0:00:02"]
[BlackClock "0:00:05"]

1. d4 {[%clk 0:03:00]}  Nf6 {[%clk 0:02:53]} 2. g3 {[%clk 0:03:00]}  d5 {[%clk 0:02:52]} 3. Nf3 {[%clk 0:02:57]}  g6 {[%clk 0:02:52]} 4. Bg2 {[%clk 0:02:56]}  Bg7 {[%clk 0:02:52]} 5. c4 {[%clk 0:02:56]}  c6 {[%clk 0:02:52]} 6. Qb3 {[%clk 0:02:55]}  O-O {[%clk 0:02:51]} 7. Nc3 {[%clk 0:02:55]}  dxc4 {[%clk 0:02:40]} 8. Qxc4 {[%clk 0:02:54]}  Be6 {[%clk 0:02:40]} 9. Qd3 {[%clk 0:02:54]}  Na6 {[%clk 0:02:33]} 10. e4 {[%clk 0:02:36]}  Nb4 {[%clk 0:02:22]} 11. Qe2 {[%clk 0:02:34]}  b5 {[%clk 0:02:11]} 12. b3 {[%clk 0:02:21]}  c5 {[%clk 0:02:02]} 13. Nxb5 {[%clk 0:02:01]}  Nxe4 {[%clk 0:01:41]} 14. O-O {[%clk 0:01:42]}  Nc3 {[%clk 0:01:35]} 15. Nxc3 {[%clk 0:01:27]}  cxd4 {[%clk 0:01:36]} 16. a3 {[%clk 0:01:04]}  Nc6 {[%clk 0:01:30]} 17. Ne4 {[%clk 0:00:56]}  d3 {[%clk 0:01:29]} 18. Qa2 {[%clk 0:00:57]}  Bxb3 {[%clk 0:01:16]} 19. Qxb3 {[%clk 0:00:55]}  Bxa1 {[%clk 0:01:16]} 20. Bh6 {[%clk 0:00:50]}  Rb8 {[%clk 0:01:15]} 21. Qa4 {[%clk 0:00:43]}  Bg7 {[%clk 0:01:15]} 22. Bxg7 {[%clk 0:00:41]}  Kxg7 {[%clk 0:01:16]} 23. Qxc6 {[%clk 0:00:40]}  Qa5 {[%clk 0:01:13]} 24. Nfd2 {[%clk 0:00:20]}  Rfc8 {[%clk 0:01:12]} 25. Qd7 {[%clk 0:00:17]}  Qxa3 {[%clk 0:01:12]} 26. Qd4+ {[%clk 0:00:15]}  Kg8 {[%clk 0:01:08]} 27. Ng5 {[%clk 0:00:13]}  Rd8 {[%clk 0:00:42]} 28. Qh4 {[%clk 0:00:12]}  h5 {[%clk 0:00:40]} 29. Qf4 {[%clk 0:00:11]}  Qa2 {[%clk 0:00:38]} 30. Rd1 {[%clk 0:00:07]}  a5 {[%clk 0:00:36]} 31. Be4 {[%clk 0:00:07]}  a4 {[%clk 0:00:34]} 32. Bxd3 {[%clk 0:00:07]}  Rbc8 {[%clk 0:00:23]} 33. Be4 {[%clk 0:00:05]}  a3 {[%clk 0:00:20]} 34. h4 {[%clk 0:00:05]}  Rf8 {[%clk 0:00:17]} 35. Bd5 {[%clk 0:00:05]}  Qxd5 {[%clk 0:00:15]} 36. Re1 {[%clk 0:00:04]}  a2 {[%clk 0:00:14]} 37. Nde4 {[%clk 0:00:04]}  f6 {[%clk 0:00:11]} 38. Nf3 {[%clk 0:00:04]}  Kg7 {[%clk 0:00:10]} 39. Ned2 {[%clk 0:00:03]}  e5 {[%clk 0:00:10]} 40. Qe3 {[%clk 0:00:03]}  Rfd8 {[%clk 0:00:10]} 41. Ne4 {[%clk 0:00:03]}  Qd3 {[%clk 0:00:07]} 42. Qa7+ {[%clk 0:00:03]}  Rd7 {[%clk 0:00:07]} 43. Qxa2 {[%clk 0:00:04]}  Qxf3 {[%clk 0:00:06]} 44. Qa6 {[%clk 0:00:03]}  Rcd8 {[%clk 0:00:04]} 45. Nc5 {[%clk 0:00:02]}  Rd1 {[%clk 0:00:04]} 46. Ne6+ {[%clk 0:00:02]}  Kh6 {[%clk 0:00:04]} 47. Qf1 {[%clk 0:00:01]}  Rxe1 {[%clk 0:00:05]} 48. Qxe1 {[%clk 0:00:02]}  Rd1 {[%clk 0:00:05]} 0-1


[Site "https://www.chess.com"]

[Event "Titled Tuesday Blitz February 21 Late 2023"]
[White "Bhavikatti, Neil"]
[Black "Remolar Gallen, Jose"]
[WhiteFideId "30935024"]
[BlackFideId "2215187"]
[WhiteElo "2051"]
[BlackElo "2285"]
[Result "1/2-1/2"]
[Round "07"]
[TimeControl "180+2"]
[Date "2023.02.21"]
[WhiteClock "0:00:03"]
[BlackClock "0:00:03"]

1. d4 {[%clk 0:03:00]}  g6 {[%clk 0:02:58]} 2. c4 {[%clk 0:03:00]}  Bg7 {[%clk 0:02:58]} 3. Nc3 {[%clk 0:03:00]}  d6 {[%clk 0:02:58]} 4. Nf3 {[%clk 0:02:59]}  Bg4 {[%clk 0:02:55]} 5. Bg5 {[%clk 0:02:49]}  h6 {[%clk 0:02:46]} 6. Bh4 {[%clk 0:02:48]}  c5 {[%clk 0:02:45]} 7. dxc5 {[%clk 0:02:45]}  Qa5 {[%clk 0:02:43]} 8. Qb3 {[%clk 0:02:20]}  dxc5 {[%clk 0:02:27]} 9. e3 {[%clk 0:02:18]}  Nc6 {[%clk 0:02:03]} 10. Be2 {[%clk 0:02:16]}  O-O-O {[%clk 0:01:58]} 11. O-O {[%clk 0:02:11]}  Nf6 {[%clk 0:01:55]} 12. Nd5 {[%clk 0:02:02]}  Be6 {[%clk 0:01:37]} 13. Rfd1 {[%clk 0:01:53]}  Rd7 {[%clk 0:01:31]} 14. Nxf6 {[%clk 0:01:37]}  Bxf6 {[%clk 0:01:27]} 15. Bxf6 {[%clk 0:01:36]}  exf6 {[%clk 0:01:28]} 16. Rxd7 {[%clk 0:01:33]}  Bxd7 {[%clk 0:01:29]} 17. Rd1 {[%clk 0:01:33]}  Be6 {[%clk 0:01:12]} 18. a3 {[%clk 0:01:08]}  Qc7 {[%clk 0:01:05]} 19. Qc3 {[%clk 0:01:06]}  Qe7 {[%clk 0:00:55]} 20. Nd2 {[%clk 0:01:03]}  Rd8 {[%clk 0:00:38]} 21. Ne4 {[%clk 0:00:57]}  Rxd1+ {[%clk 0:00:37]} 22. Bxd1 {[%clk 0:00:58]}  f5 {[%clk 0:00:37]} 23. Nd2 {[%clk 0:00:52]}  h5 {[%clk 0:00:35]} 24. Bf3 {[%clk 0:00:49]}  Qd6 {[%clk 0:00:34]} 25. Bxc6 {[%clk 0:00:42]}  Qxc6 {[%clk 0:00:31]} 26. f3 {[%clk 0:00:41]}  Qd6 {[%clk 0:00:29]} 27. f4 {[%clk 0:00:26]}  b6 {[%clk 0:00:05]} 28. Kf2 {[%clk 0:00:26]}  Kb7 {[%clk 0:00:04]} 29. Ke2 {[%clk 0:00:14]}  Bd7 {[%clk 0:00:04]} 30. Nf3 {[%clk 0:00:12]}  f6 {[%clk 0:00:04]} 31. Qd3 {[%clk 0:00:09]}  Kc7 {[%clk 0:00:04]} 32. Qc3 {[%clk 0:00:07]}  Bc6 {[%clk 0:00:04]} 33. Ne1 {[%clk 0:00:05]}  Be4 {[%clk 0:00:04]} 34. Qd2 {[%clk 0:00:05]}  Kc6 {[%clk 0:00:03]} 35. Qxd6+ {[%clk 0:00:05]}  Kxd6 {[%clk 0:00:04]} 36. Nf3 {[%clk 0:00:05]}  a6 {[%clk 0:00:03]} 37. Kd2 {[%clk 0:00:05]}  b5 {[%clk 0:00:03]} 38. Kc3 {[%clk 0:00:05]}  Kc6 {[%clk 0:00:03]} 39. Ne1 {[%clk 0:00:04]}  Kb6 {[%clk 0:00:03]} 40. g3 {[%clk 0:00:04]}  Kc6 {[%clk 0:00:03]} 41. Nd3 {[%clk 0:00:04]}  g5 {[%clk 0:00:02]} 42. Nf2 {[%clk 0:00:03]}  Bf3 {[%clk 0:00:01]} 43. Nd3 {[%clk 0:00:02]}  Be4 {[%clk 0:00:01]} 44. Ne1 {[%clk 0:00:03]}  g4 {[%clk 0:00:01]} 45. Nd3 {[%clk 0:00:03]}  Bxd3 {[%clk 0:00:02]} 46. Kxd3 {[%clk 0:00:03]}  Kd6 {[%clk 0:00:02]} 47. b3 {[%clk 0:00:03]}  Kc6 {[%clk 0:00:01]} 48. Kc3 {[%clk 0:00:02]}  Kd6 {[%clk 0:00:02]} 49. Kd3 {[%clk 0:00:03]}  Kc6 {[%clk 0:00:02]} 50. Kc3 {[%clk 0:00:03]}  Kb6 {[%clk 0:00:03]} 51. Kd3 {[%clk 0:00:03]}  Kc6 {[%clk 0:00:03]} 1/2-1/2


[Site "https://www.chess.com"]

[Event "Titled Tuesday Blitz February 21 Late 2023"]
[White "Jorajuria Mendoza, Algol"]
[Black "Berezin, Viktor"]
[WhiteFideId "5128897"]
[BlackFideId "14107872"]
[WhiteElo "2069"]
[BlackElo "2307"]
[Result "1-0"]
[Round "07"]
[TimeControl "180+2"]
[Date "2023.02.21"]
[WhiteClock "0:00:02"]
[BlackClock "0:00:01"]

1. e4 {[%clk 0:03:00]}  g6 {[%clk 0:02:59]} 2. d4 {[%clk 0:03:00]}  Bg7 {[%clk 0:03:00]} 3. Be3 {[%clk 0:02:59]}  d6 {[%clk 0:03:00]} 4. Nc3 {[%clk 0:02:55]}  Nf6 {[%clk 0:03:00]} 5. f3 {[%clk 0:02:52]}  O-O {[%clk 0:02:59]} 6. Qd2 {[%clk 0:02:52]}  c6 {[%clk 0:03:00]} 7. h4 {[%clk 0:02:47]}  h5 {[%clk 0:02:59]} 8. Nh3 {[%clk 0:02:45]}  b5 {[%clk 0:02:58]} 9. a4 {[%clk 0:02:20]}  b4 {[%clk 0:02:57]} 10. Ne2 {[%clk 0:02:09]}  a5 {[%clk 0:02:51]} 11. Nef4 {[%clk 0:02:02]}  Nbd7 {[%clk 0:02:45]} 12. Bc4 {[%clk 0:02:00]}  e6 {[%clk 0:02:25]} 13. Bxe6 {[%clk 0:01:41]}  fxe6 {[%clk 0:02:09]} 14. Nxe6 {[%clk 0:01:41]}  Qe7 {[%clk 0:02:09]} 15. Nxf8 {[%clk 0:01:36]}  Nxf8 {[%clk 0:02:09]} 16. Ng5 {[%clk 0:01:18]}  Ne6 {[%clk 0:02:06]} 17. O-O {[%clk 0:01:14]}  Ba6 {[%clk 0:02:01]} 18. Rfe1 {[%clk 0:01:09]}  Nxg5 {[%clk 0:01:52]} 19. Bxg5 {[%clk 0:01:07]}  Qe6 {[%clk 0:01:52]} 20. Rad1 {[%clk 0:00:33]}  Rf8 {[%clk 0:01:45]} 21. Bh6 {[%clk 0:00:29]}  Qc4 {[%clk 0:01:35]} 22. Qg5 {[%clk 0:00:22]}  Qf7 {[%clk 0:01:34]} 23. Bxg7 {[%clk 0:00:20]}  Kxg7 {[%clk 0:01:35]} 24. d5 {[%clk 0:00:18]}  cxd5 {[%clk 0:01:18]} 25. e5 {[%clk 0:00:19]}  dxe5 {[%clk 0:01:16]} 26. Qxe5 {[%clk 0:00:16]}  Bb7 {[%clk 0:00:54]} 27. Qd6 {[%clk 0:00:16]}  Re8 {[%clk 0:00:53]} 28. Qb6 {[%clk 0:00:12]}  Bc8 {[%clk 0:00:24]} 29. Qxa5 {[%clk 0:00:11]}  Bf5 {[%clk 0:00:24]} 30. Qxb4 {[%clk 0:00:10]}  Bxc2 {[%clk 0:00:23]} 31. Rc1 {[%clk 0:00:07]}  Bf5 {[%clk 0:00:15]} 32. Qd4 {[%clk 0:00:06]}  Re7 {[%clk 0:00:07]} 33. a5 {[%clk 0:00:06]}  Qe8 {[%clk 0:00:04]} 34. Kf2 {[%clk 0:00:04]}  Kf7 {[%clk 0:00:04]} 35. b4 {[%clk 0:00:04]}  Be6 {[%clk 0:00:02]} 36. a6 {[%clk 0:00:04]}  Qb5 {[%clk 0:00:02]} 37. a7 {[%clk 0:00:02]}  Qb7 {[%clk 0:00:02]} 38. Ra1 {[%clk 0:00:02]}  Qa8 {[%clk 0:00:03]} 39. Rec1 {[%clk 0:00:02]}  Bf5 {[%clk 0:00:03]} 40. b5 {[%clk 0:00:02]}  Ne4+ {[%clk 0:00:03]} 41. fxe4 {[%clk 0:00:02]}  Rxe4 {[%clk 0:00:04]} 42. Qc5 {[%clk 0:00:02]}  Bg4 {[%clk 0:00:03]} 43. Qc7+ {[%clk 0:00:01]}  Re7 {[%clk 0:00:04]} 44. Qc6 {[%clk 0:00:01]}  Qd8 {[%clk 0:00:04]} 45. a8=Q {[%clk 0:00:01]}  Re2+ {[%clk 0:00:01]} 46. Kg1 {[%clk 0:00:01]}  Qxh4 {[%clk 0:00:01]} 47. Qab7+ {[%clk 0:00:01]}  Re7 {[%clk 0:00:02]} 48. Qcb6 {[%clk 0:00:02]}  Qg3 {[%clk 0:00:01]} 49. Qxe7+ {[%clk 0:00:01]}  Kxe7 {[%clk 0:00:01]} 50. Rc7+ {[%clk 0:00:02]}  Bd7 {[%clk 0:00:01]} 51. Re1+ {[%clk 0:00:02]}  Kf8 {[%clk 0:00:01]} 52. Rf1+ {[%clk 0:00:02]} 1-0


[Site "https://www.chess.com"]